[Event "FIDE World Rapid-ch Open 2018"]
[White "Tsydypov, Zhamsaran"]
[Black "Teterev, Vitaly"]
[Site "St. Petersburg"]
[Round "11.65"]
[Annotator "ChessBase"]
[Result "1-0"]
[Date "2018.12.28"]
[WhiteElo "2529"]
[BlackElo "2486"]
[PlyCount "107"]
[TimeControl "900+10"]

1. d4 {[%emt 0:0:0]} Nf6 {[%emt 0:0:0]} 2. c4 {[%emt 0:0:0]} g6 {[%emt 0:0:0]} 3. Nc3 {[%emt 0:0:0]} Bg7 {[%emt 0:0:0]} 4. e4 {[%emt 0:0:1]} d6 {[%emt 0:0:0]} 5. Nf3 {[%emt 0:0:4]} 0-0 {[%emt 0:0:0]} 6. Be2 {[%emt 0:0:0]} e5 {[%emt 0:0:0]} 7. 0-0 {[%emt 0:0:3]} exd4 {[%emt 0:0:3]} 8. Nxd4 {[%emt 0:0:2]} Re8 {[%emt 0:0:2]} 9. f3 {[%emt 0:0:9]} Nc6 {[%emt 0:0:0]} 10. Be3 {[%emt 0:0:41]} Nh5 {[%emt 0:0:2]} 11. Rf2 {[%emt 0:1:33]} f5 {[%emt 0:1:23]} 12. Nxc6 {[%emt 0:0:16]} bxc6 {[%emt 0:0:1]} 13. Bd4 {[%emt 0:2:23]
} Nf6 {[%emt 0:1:10]} 14. exf5 {[%emt 0:1:12]} Bxf5 {[%emt 0:0:0]} 15. c5 {[%emt 0:0:2]} d5 {[%emt 0:2:6]} 16. b4 {[%emt 0:0:38]} a6 {[%emt 0:2:37]} 17. Bf1 {[%emt 0:3:7]} Nd7 {[%emt 0:1:32]} 18. Bxg7 {[%emt 0:0:39]
} Kxg7 {[%emt 0:0:1]} 19. Ne2 {[%emt 0:0:13]} Qf6 {[%emt 0:0:0]} 20. Nd4 {[%emt 0:0:11]} Nf8 {[%emt 0:0:28]} 21. Nb3 {[%emt 0:3:22]} Bd7 {[%emt 0:0:26]} 22. Qd4 {[%emt 0:0:4]} Qxd4 {[%emt 0:1:39]} 23. Nxd4 {[%emt 0:0:1]
} a5 {[%emt 0:0:21]} 24. b5 {[%emt 0:0:8]} cxb5 {[%emt 0:0:0]} 25. c6 {[%emt 0:0:2]} Bc8 {[%emt 0:2:29]} 26. Nxb5 {[%emt 0:0:12]} Ne6 {[%emt 0:0:3]} 27. Rd2 {[%emt 0:3:46]} Ra6 {[%emt 0:0:1]} 28. Rc1 {[%emt 0:0:18]
} Rd8 {[%emt 0:0:1]} 29. a4 {[%emt 0:0:22]} Rb6 {[%emt 0:0:0]} 30. Kf2 {[%emt 0:0:2]} Kf6 {[%emt 0:0:7]} 31. g3 {[%emt 0:0:2]} Ba6 {[%emt 0:0:22]} 32. f4 {[%emt 0:0:24]} Bxb5 {[%emt 0:1:12]} 33. axb5 {[%emt 0:0:9]
} a4 {[%emt 0:0:7]} 34. Ra2 {[%emt 0:0:11]} Ra8 {[%emt 0:0:0]} 35. Ke3 {[%emt 0:0:7]} Ke7 {[%emt 0:0:18]} 36. Ra3 {[%emt 0:0:15]} Kd6 {[%emt 0:0:11]} 37. Rd1 {[%emt 0:0:1]} Ra5 {[%emt 0:0:23]} 38. Bc4 {[%emt 0:0:6]
} Raxb5 {[%emt 0:0:6]} 39. Bxb5 {[%emt 0:0:1]} Rxb5 {[%emt 0:0:0]} 40. Rxa4 {[%emt 0:0:3]} Kxc6 {[%emt 0:0:26]} 41. Ra6+ {[%emt 0:0:0]} Kd7 {[%emt 0:0:1]} 42. Rd2 {[%emt 0:0:6]} h5 {[%emt 0:0:18]} 43. Kf3 {[%emt 0:0:22]} Rb3+ {[%emt 0:0:4]} 44. Kg2 {[%emt 0:0:3]} c6 {[%emt 0:0:0]} 45. Ra7+ Kd6 46. Rf7 {[%emt 0:0:19]} d4 {[%emt 0:0:29]} 47. Rf6 {[%emt 0:0:5]
} Kd5 {[%emt 0:0:1]} 48. Re2 {[%emt 0:0:5]} Nd8 {[%emt 0:0:0]} 49. Re8 {[%emt 0:0:24]} Nb7 {[%emt 0:0:10]} 50. Re5+ {[%emt 0:0:2]} Kc4 {[%emt 0:0:1]} 51. Rxc6+ {[%emt 0:0:1]} Kd3 {[%emt 0:0:2]} 52. Rxg6 {[%emt 0:0:11]
} Rb2+ {[%emt 0:0:1]} 53. Kf3 {[%emt 0:0:2]} Kd2 {[%emt 0:0:0]} 54. Re2+ {[%emt 0:0:1]} 1-0

[Event "FIDE World Rapid-ch Open 2018"]
[White "AL-Sayed, Mohammed"]
[Black "Miton, Kamil"]
[Site "St. Petersburg"]
[Round "11.66"]
[Annotator "ChessBase"]
[Result "0-1"]
[Date "2018.12.28"]
[WhiteElo "2484"]
[BlackElo "2588"]
[PlyCount "66"]
[TimeControl "900+10"]

1. e4 {[%emt 0:0:0]} c5 {[%emt 0:0:0]} 2. Nf3 {[%emt 0:0:0]} d6 {[%emt 0:0:0]} 3. Bb5+ {[%emt 0:0:3]} Bd7 {[%emt 0:0:7]} 4. a4 {[%emt 0:0:15]} Nf6 {[%emt 0:0:16]} 5. Nc3 {[%emt 0:0:12]} e6 {[%emt 0:0:8]} 6. e5 {[%emt 0:0:38]
} dxe5 {[%emt 0:0:14]} 7. Nxe5 {[%emt 0:0:2]} Be7 {[%emt 0:0:0]} 8. 0-0 {[%emt 0:0:23]} 0-0 {[%emt 0:0:7]} 9. d3 {[%emt 0:0:31]} a6 {[%emt 0:1:23]
} 10. Bxd7 {[%emt 0:0:11]} Nbxd7 {[%emt 0:0:2]} 11. Nc4 {[%emt 0:0:16]
} Nb6 {[%emt 0:1:33]} 12. Nxb6 {[%emt 0:0:3]} Qxb6 {[%emt 0:0:0]} 13. Qf3 {[%emt 0:0:2]} Rac8 {[%emt 0:0:19]} 14. b3 {[%emt 0:1:21]} Qc6 {[%emt 0:0:17]} 15. Qxc6 {[%emt 0:0:16]} Rxc6 {[%emt 0:0:1]} 16. Re1 {[%emt 0:0:21]
} b6 {[%emt 0:0:16]} 17. Bf4 {[%emt 0:0:26]} Rd8 {[%emt 0:0:0]} 18. Kf1 {[%emt 0:0:16]} Kf8 {[%emt 0:0:11]} 19. h3 {[%emt 0:0:27]} Rcc8 {[%emt 0:0:14]} 20. Rad1 {[%emt 0:0:38]} Nd7 {[%emt 0:0:23]} 21. Ne4 {[%emt 0:1:12]
} Nb8 {[%emt 0:0:9]} 22. Nd2 {[%emt 0:0:6]} b5 {[%emt 0:0:0]} 23. axb5 {[%emt 0:0:58]} axb5 {[%emt 0:0:2]} 24. Ne4 {[%emt 0:5:31]} Nc6 {[%emt 0:0:10]} 25. Nc3 {[%emt 0:0:21]} Nd4 {[%emt 0:0:33]} 26. Rc1 {[%emt 0:0:1]
} c4 {[%emt 0:0:20]} 27. bxc4 {[%emt 0:1:47]} bxc4 {[%emt 0:0:0]} 28. dxc4 {[%emt 0:1:22]} Rxc4 {[%emt 0:1:6]} 29. Ne4 {[%emt 0:0:0]} Nxc2 {[%emt 0:2:16]} 30. Re2 {[%emt 0:0:1]} Na3 {[%emt 0:0:5]} 31. Rxc4 {[%emt 0:1:10]
} Nxc4 {[%emt 0:0:2]} 32. g4 {[%emt 0:0:25]} Rd4 {[%emt 0:0:0]} 33. Bg3 {[%emt 0:0:11]} Rxe4 0-1

[Event "FIDE World Rapid-ch Open 2018"]
[White "Carlsson, Pontus"]
[Black "Gareyev, Timur"]
[Site "St. Petersburg"]
[Round "11.67"]
[Annotator "ChessBase"]
[Result "1-0"]
[Date "2018.12.28"]
[WhiteElo "2463"]
[BlackElo "2569"]
[PlyCount "77"]
[TimeControl "900+10"]

1. e4 {[%emt 0:4:10]} e5 {[%emt 0:0:0]} 2. Nf3 {[%emt 0:0:5]} Nc6 {[%emt 0:0:1]
} 3. d4 {[%emt 0:0:20]} exd4 {[%emt 0:0:26]} 4. Nxd4 {[%emt 0:0:0]} Qf6 {[%emt 0:0:2]} 5. Nb5 {[%emt 0:0:14]} Bc5 {[%emt 0:0:4]} 6. Qe2 {[%emt 0:0:3]} Qd8 {[%emt 0:0:27]} 7. Be3 {[%emt 0:0:3]} Bb4+ {[%emt 0:0:18]
} 8. c3 {[%emt 0:0:21]} Ba5 {[%emt 0:1:24]} 9. Nd2 {[%emt 0:0:0]} Nge7 {[%emt 0:0:27]} 10. Nc4 {[%emt 0:0:22]} 0-0 {[%emt 0:1:21]} 11. Nxa5 {[%emt 0:0:9]} Nxa5 {[%emt 0:0:2]} 12. 0-0-0 {[%emt 0:1:7]} d6 {[%emt 0:0:51]
} 13. Qh5 {[%emt 0:2:46]} Nac6 {[%emt 0:0:24]} 14. f4 {[%emt 0:0:0]} Be6 {[%emt 0:1:20]} 15. Kb1 {[%emt 0:0:52]} f6 {[%emt 0:1:13]} 16. Bd3 {[%emt 0:0:29]} Qd7 {[%emt 0:0:3]} 17. h3 {[%emt 0:0:48]} f5 {[%emt 0:0:0]} 18. g4 {[%emt 0:0:13]} Bf7 {[%emt 0:0:53]} 19. Qh4 {[%emt 0:0:30]} fxe4 {[%emt 0:0:54]} 20. Bc2 {[%emt 0:0:54]} Rae8 {[%emt 0:0:8]} 21. Rhe1 {[%emt 0:1:13]
} a6 {[%emt 0:0:0]} 22. Nd4 {[%emt 0:0:11]} d5 {[%emt 0:1:12]
} 23. Nxc6 {[%emt 0:0:31]} Qxc6 {[%emt 0:0:6]} 24. f5 {[%emt 0:0:9]} Qd6 {[%emt 0:2:54]
} 25. Bxe4 {[%emt 0:0:13]} Nc6 {[%emt 0:0:2]} 26. Bc2 {[%emt 0:0:10]
} d4 {[%emt 0:0:23]} 27. Bxd4 {[%emt 0:1:13]} Nxd4 {[%emt 0:0:0]} 28. Rxd4 {[%emt 0:0:21]} Qh6 {[%emt 0:0:2]} 29. Qf2 {[%emt 0:0:20]} Qxh3 {[%emt 0:0:12]} 30. g5 {[%emt 0:0:9]} Rxe1+ {[%emt 0:0:25]} 31. Qxe1 {[%emt 0:0:2]
} Re8 {[%emt 0:0:1]} 32. Qf2 {[%emt 0:0:18]} Qh5 {[%emt 0:0:0]} 33. Qg3 {[%emt 0:0:12]} c5 {[%emt 0:0:59]} 34. Rd1 {[%emt 0:0:8]} Qe2 {[%emt 0:0:8]} 35. g6 {[%emt 0:0:10]} hxg6 {[%emt 0:0:32]} 36. fxg6 {[%emt 0:0:4]
} Bxa2+ {[%emt 0:0:6]} 37. Kxa2 {[%emt 0:0:7]} Qxc2 {[%emt 0:0:0]} 38. Qg4 {[%emt 0:0:9]} Qh2 {[%emt 0:1:11]} 39. Qe6+ {[%emt 0:0:19]} 1-0

[Event "FIDE World Rapid-ch Open 2018"]
[White "Gabrielian, Artur"]
[Black "Zubritskiy, Artyom"]
[Site "St. Petersburg"]
[Round "11.68"]
[Annotator "ChessBase"]
[Result "1-0"]
[Date "2018.12.28"]
[WhiteElo "2499"]
[BlackElo "2442"]
[PlyCount "63"]
[TimeControl "900+10"]

1. e4 {[%emt 0:0:0]} c5 {[%emt 0:0:0]} 2. Nc3 {[%emt 0:0:0]} d6 {[%emt 0:0:0]} 3. d4 {[%emt 0:0:0]} cxd4 {[%emt 0:0:6]} 4. Qxd4 {[%emt 0:0:0]} a6 {[%emt 0:0:16]} 5. b3 {[%emt 0:0:0]} Nc6 {[%emt 0:0:5]} 6. Qd2 {[%emt 0:0:0]
} Nf6 {[%emt 0:1:47]} 7. Bb2 {[%emt 0:0:1]} e6 {[%emt 0:0:11]
} 8. 0-0-0 {[%emt 0:0:2]} Be7 {[%emt 0:0:1]} 9. f4 {[%emt 0:0:13]} 0-0 {[%emt 0:0:21]
} 10. Nf3 {[%emt 0:0:2]} Qa5 {[%emt 0:10:11]} 11. Kb1 {[%emt 0:0:0]} Rd8 {[%emt 0:0:11]} 12. Bd3 {[%emt 0:0:39]} Nb4 {[%emt 0:1:17]} 13. a3 {[%emt 0:4:24]} Nxd3 {[%emt 0:0:2]} 14. cxd3 {[%emt 0:0:1]} Qb6 {[%emt 0:0:15]
} 15. Ka2 {[%emt 0:0:2]} Bd7 {[%emt 0:0:8]} 16. g4 {[%emt 0:0:0]} a5 {[%emt 0:0:27]} 17. g5 {[%emt 0:0:9]} Ne8 {[%emt 0:0:1]} 18. f5 {[%emt 0:0:28]} a4 {[%emt 0:0:1]} 19. b4 {[%emt 0:0:3]} exf5 {[%emt 0:0:0]} 20. Nd5 {[%emt 0:0:52]} Be6 {[%emt 0:0:1]} 21. Nd4 {[%emt 0:0:19]} Bxd5+ {[%emt 0:1:17]} 22. exd5 {[%emt 0:0:2]} Nc7 {[%emt 0:0:34]} 23. Nxf5 {[%emt 0:0:23]} Nxd5 {[%emt 0:0:27]} 24. Bxg7 {[%emt 0:4:46]} Rac8 {[%emt 0:0:0]} 25. Bb2 {[%emt 0:0:12]} Bf8 {[%emt 0:0:19]} 26. Rhg1 {[%emt 0:0:45]} Qb5 {[%emt 0:0:11]} 27. Rdf1 {[%emt 0:0:30]} Rc7 {[%emt 0:0:11]} 28. Ka1 {[%emt 0:1:3]
} Rdc8 {[%emt 0:0:9]} 29. Nh6+ {[%emt 0:0:29]} Bxh6 {[%emt 0:0:0]} 30. gxh6+ {[%emt 0:0:2]} Kf8 {[%emt 0:0:1]} 31. Qg5 {[%emt 0:0:13]
} Ke8 {[%emt 0:0:30]} 32. Rf5 {[%emt 0:0:39]} 1-0

[Event "FIDE World Rapid-ch Open 2018"]
[White "Tissir, Mohamed"]
[Black "Golubov, Saveliy"]
[Site "St. Petersburg"]
[Round "11.69"]
[Annotator "ChessBase"]
[Result "1-0"]
[Date "2018.12.28"]
[WhiteElo "2387"]
[BlackElo "2482"]
[PlyCount "69"]
[TimeControl "900+10"]

1. e4 {[%emt 0:0:0]} c5 {[%emt 0:0:0]} 2. Nc3 {[%emt 0:0:0]} a6 {[%emt 0:0:0]} 3. Nf3 {[%emt 0:0:0]} b5 {[%emt 0:0:0]} 4. d4 {[%emt 0:0:0]} cxd4 {[%emt 0:0:0]} 5. Nxd4 {[%emt 0:0:1]} Bb7 {[%emt 0:0:0]} 6. Bd3 {[%emt 0:0:0]} e6 {[%emt 0:0:8]} 7. 0-0 {[%emt 0:0:3]} Qc7 {[%emt 0:0:2]} 8. a3 {[%emt 0:0:30]} Nf6 {[%emt 0:0:5]} 9. Qe2 {[%emt 0:0:12]} d6 {[%emt 0:0:0]} 10. f4 {[%emt 0:0:7]} Nbd7 {[%emt 0:0:3]} 11. Kh1 {[%emt 0:0:6]} Be7 {[%emt 0:0:11]} 12. Bd2 {[%emt 0:0:6]} h5 {[%emt 0:0:24]} 13. Rae1 {[%emt 0:1:22]
} h4 {[%emt 0:0:16]} 14. Rf3 {[%emt 0:0:58]} Nc5 {[%emt 0:0:0]} 15. b4 {[%emt 0:0:11]} Nxd3 {[%emt 0:1:6]} 16. cxd3 {[%emt 0:0:2]} Rc8 {[%emt 0:0:1]} 17. Rh3 {[%emt 0:0:12]} g6 {[%emt 0:2:47]} 18. Rf1 {[%emt 0:1:9]
} e5 {[%emt 0:2:24]} 19. Nb3 {[%emt 0:0:57]} exf4 {[%emt 0:0:0]} 20. Rxf4 {[%emt 0:0:6]} Nd7 {[%emt 0:2:39]} 21. Rf1 {[%emt 0:1:22]} 0-0 {[%emt 0:0:51]} 22. Nd4 {[%emt 0:1:11]} Ne5 {[%emt 0:2:3]} 23. Nc2 {[%emt 0:0:48]
} f5 {[%emt 0:0:35]} 24. exf5 {[%emt 0:0:24]} Rxf5 {[%emt 0:0:0]} 25. Rxf5 {[%emt 0:0:8]} gxf5 {[%emt 0:0:2]} 26. Nd4 {[%emt 0:0:9]} Qd7 {[%emt 0:2:0]} 27. Qh5 {[%emt 0:0:25]} f4 {[%emt 0:0:2]} 28. Nf5 {[%emt 0:0:19]
} Bf6 {[%emt 0:0:1]} 29. d4 {[%emt 0:0:24]} Qc6 {[%emt 0:0:0]} 30. d5 {[%emt 0:6:41]} Qc4 {[%emt 0:0:20]} 31. Qd1 {[%emt 0:0:9]} f3 {[%emt 0:1:33]
} 32. gxf3 {[%emt 0:0:31]} Bxd5 {[%emt 0:0:49]} 33. Qg1+ {[%emt 0:0:52]
} Kh7 {[%emt 0:0:9]} 34. Nxd5 {[%emt 0:0:3]} Qxd5 {[%emt 0:0:0]} 35. Rxh4+ {[%emt 0:0:2]} 1-0

[Event "FIDE World Rapid-ch Open 2018"]
[White "Popov, Valerij"]
[Black "Kobo, Ori"]
[Site "St. Petersburg"]
[Round "11.70"]
[Annotator "ChessBase"]
[Result "1-0"]
[Date "2018.12.28"]
[WhiteElo "2532"]
[BlackElo "2494"]
[PlyCount "115"]
[TimeControl "900+10"]

1. d4 {[%emt 0:0:0]} Nf6 {[%emt 0:0:0]} 2. Nf3 {[%emt 0:0:0]} g6 {[%emt 0:0:1]
} 3. c4 {[%emt 0:0:0]} Bg7 {[%emt 0:0:2]} 4. Nc3 {[%emt 0:0:0]} d5 {[%emt 0:0:2]} 5. Bg5 {[%emt 0:0:15]} Ne4 {[%emt 0:0:8]} 6. cxd5 {[%emt 0:0:25]
} Nxg5 {[%emt 0:0:8]} 7. Nxg5 {[%emt 0:0:1]} 0-0 {[%emt 0:0:0]} 8. Nf3 {[%emt 0:1:27]} c6 {[%emt 0:0:29]} 9. dxc6 {[%emt 0:0:26]} Nxc6 {[%emt 0:0:2]} 10. e3 {[%emt 0:0:3]} e5 {[%emt 0:0:6]} 11. d5 {[%emt 0:0:0]} e4 {[%emt 0:0:8]} 12. dxc6 {[%emt 0:4:3]} Qxd1+ {[%emt 0:1:28]} 13. Rxd1 {[%emt 0:2:4]} exf3 {[%emt 0:0:2]} 14. gxf3 {[%emt 0:1:38]} bxc6 {[%emt 0:0:2]} 15. Na4 {[%emt 0:0:41]} Be6 {[%emt 0:3:28]} 16. b3 {[%emt 0:0:0]} Rfd8 {[%emt 0:2:6]} 17. Ba6 {[%emt 0:0:15]} Bf8 {[%emt 0:2:28]} 18. Ke2 {[%emt 0:0:25]} Kg7 {[%emt 0:2:40]} 19. Bb7 {[%emt 0:0:18]} Rab8 {[%emt 0:0:13]
} 20. Bxc6 {[%emt 0:0:26]} Rdc8 {[%emt 0:0:55]} 21. Be4 {[%emt 0:0:2]
} Rb5 {[%emt 0:0:23]} 22. Rc1 {[%emt 0:0:14]} Rxc1 {[%emt 0:0:0]} 23. Rxc1 {[%emt 0:0:1]} Rh5 {[%emt 0:0:1]} 24. Rc7 {[%emt 0:1:11]} a5 {[%emt 0:0:28]} 25. Ra7 {[%emt 0:0:1]} Bb4 {[%emt 0:0:52]} 26. f4 {[%emt 0:0:0]} Rxh2 {[%emt 0:0:3]} 27. Nb2 {[%emt 0:0:5]} h5 {[%emt 0:1:48]} 28. Nd3 {[%emt 0:0:2]} Bc3 {[%emt 0:0:11]} 29. Nc5 {[%emt 0:0:23]} Bg4+ {[%emt 0:0:2]
} 30. Kf1 {[%emt 0:0:3]} Rh4 {[%emt 0:0:27]} 31. Bd5 {[%emt 0:0:0]} Kh6 {[%emt 0:0:15]} 32. Rxf7 {[%emt 0:0:37]} Bh3+ {[%emt 0:0:1]} 33. Ke2 {[%emt 0:0:6]} Bf5 {[%emt 0:0:20]} 34. a4 {[%emt 0:1:9]} Rg4 {[%emt 0:0:3]
} 35. Ne4 {[%emt 0:0:9]} Bxe4 {[%emt 0:0:15]} 36. Bxe4 {[%emt 0:0:0]
} Rg1 {[%emt 0:0:10]} 37. Rc7 {[%emt 0:0:23]} Bb4 {[%emt 0:0:0]} 38. f5 {[%emt 0:0:10]} gxf5 {[%emt 0:0:4]} 39. Bxf5 {[%emt 0:0:1]} Re1+ {[%emt 0:0:9]} 40. Kf3 {[%emt 0:0:2]} Kg5 {[%emt 0:0:3]} 41. Bd3 {[%emt 0:0:46]
} Rd1 {[%emt 0:0:7]} 42. Rg7+ {[%emt 0:0:31]} Kf6 {[%emt 0:0:0]} 43. Rg6+ {[%emt 0:0:1]} Kf7 {[%emt 0:0:14]} 44. Be4 {[%emt 0:0:2]} Rd2 {[%emt 0:0:17]} 45. Rh6 {[%emt 0:0:1]} Rb2 {[%emt 0:0:16]} 46. Rxh5 {[%emt 0:0:2]
} Be1 {[%emt 0:0:4]} 47. Bd5+ {[%emt 0:0:9]} Kf6 {[%emt 0:0:0]} 48. Rh2 {[%emt 0:0:3]} Ke5 {[%emt 0:0:5]} 49. Bc4 {[%emt 0:0:1]} Kf5 {[%emt 0:0:27]} 50. e4+ {[%emt 0:0:22]} Ke5 {[%emt 0:0:1]} 51. Ke3 {[%emt 0:0:1]
} Bd2+ {[%emt 0:0:2]} 52. Kd3 {[%emt 0:0:1]} Bf4 {[%emt 0:0:0]} 53. Rh5+ {[%emt 0:0:5]} Kd6 {[%emt 0:0:0]} 54. Rd5+ {[%emt 0:0:6]} Kc6 {[%emt 0:0:15]} 55. e5 {[%emt 0:0:11]} Rxf2 {[%emt 0:0:17]} 56. Rxa5 {[%emt 0:0:11]
} Bd2 {[%emt 0:0:24]} 57. Bd5+ {[%emt 0:0:5]} Kb6 {[%emt 0:0:0]} 58. Rb5+ {[%emt 0:0:2]} 1-0

[Event "FIDE World Rapid-ch Open 2018"]
[White "Fakhrutdinov, Timur"]
[Black "Geller, Jakov"]
[Site "St. Petersburg"]
[Round "11.71"]
[Annotator "ChessBase"]
[Result "1/2-1/2"]
[Date "2018.12.28"]
[WhiteElo "2481"]
[BlackElo "2518"]
[PlyCount "134"]
[TimeControl "900+10"]

1. e4 {[%emt 0:0:0]} c5 {[%emt 0:0:0]} 2. Nf3 {[%emt 0:0:0]} Nc6 {[%emt 0:0:6]
} 3. d4 {[%emt 0:0:0]} cxd4 {[%emt 0:0:2]} 4. Nxd4 {[%emt 0:0:0]} g6 {[%emt 0:0:10]} 5. Nc3 {[%emt 0:0:17]} Bg7 {[%emt 0:0:8]} 6. Be3 {[%emt 0:0:3]} Nf6 {[%emt 0:0:4]} 7. Bc4 {[%emt 0:0:7]} 0-0 {[%emt 0:0:0]} 8. Bb3 {[%emt 0:0:5]} Re8 {[%emt 0:0:48]} 9. 0-0 {[%emt 0:1:16]} d6 {[%emt 0:0:5]
} 10. h3 {[%emt 0:0:37]} Na5 {[%emt 0:0:4]} 11. Re1 {[%emt 0:0:0]} a6 {[%emt 0:0:38]} 12. Qd3 {[%emt 0:1:5]} Bd7 {[%emt 0:2:25]} 13. Rad1 {[%emt 0:0:27]} Nxb3 {[%emt 0:0:24]} 14. axb3 {[%emt 0:0:11]} Qc7 {[%emt 0:0:13]
} 15. Bg5 {[%emt 0:1:21]} Bc6 {[%emt 0:0:49]} 16. Nxc6 {[%emt 0:4:1]
} bxc6 {[%emt 0:1:48]} 17. Ra1 {[%emt 0:0:4]} a5 {[%emt 0:0:0]} 18. Ra4 {[%emt 0:0:59]} Nd7 {[%emt 0:0:53]} 19. Be3 {[%emt 0:0:3]} e6 {[%emt 0:0:18]} 20. Rea1 {[%emt 0:0:56]} d5 {[%emt 0:1:34]} 21. Qd2 {[%emt 0:1:52]
} Nb6 {[%emt 0:2:29]} 22. R4a2 {[%emt 0:1:24]} Red8 {[%emt 0:0:0]} 23. exd5 {[%emt 0:0:30]} Nxd5 {[%emt 0:0:31]} 24. Nxd5 {[%emt 0:0:0]} Rxd5 {[%emt 0:0:2]} 25. Qe2 {[%emt 0:0:15]} Rad8 {[%emt 0:0:6]} 26. g3 {[%emt 0:0:23]} h5 {[%emt 0:0:40]} 27. h4 {[%emt 0:0:9]} Qe5 {[%emt 0:0:0]} 28. Qc4 {[%emt 0:0:28]} Qf5 {[%emt 0:0:31]} 29. Kg2 {[%emt 0:0:12]} Bd4 {[%emt 0:0:22]} 30. Re1 {[%emt 0:0:32]} Rc5 {[%emt 0:0:43]} 31. Qd3 {[%emt 0:0:7]
} Rxc2 {[%emt 0:0:31]} 32. Qxf5 {[%emt 0:0:16]} gxf5 {[%emt 0:0:0]} 33. Rxa5 {[%emt 0:0:18]} Bxe3 {[%emt 0:0:10]} 34. Rxe3 {[%emt 0:0:0]} Rdd2 {[%emt 0:0:2]} 35. Rf3 {[%emt 0:0:5]} Kg7 {[%emt 0:0:14]} 36. b4 {[%emt 0:0:12]} Rxb2 {[%emt 0:0:4]} 37. Rc5 {[%emt 0:0:5]} Rbc2 {[%emt 0:0:0]} 38. Rxc2 {[%emt 0:0:11]} Rxc2 {[%emt 0:0:2]} 39. Rb3 {[%emt 0:0:5]
} Kg6 {[%emt 0:0:23]} 40. b5 {[%emt 0:0:2]} cxb5 {[%emt 0:0:1]} 41. Rxb5 {[%emt 0:0:1]
} Rc4 {[%emt 0:0:12]} 42. f4 {[%emt 0:0:38]} Rc2+ {[%emt 0:0:0]} 43. Kf3 {[%emt 0:0:1]} Rc3+ {[%emt 0:0:1]} 44. Kf2 {[%emt 0:0:1]} Rc8 {[%emt 0:0:10]} 45. Kf3 {[%emt 0:0:8]} Kf6 {[%emt 0:0:1]} 46. Rb7 {[%emt 0:0:6]
} Kg6 {[%emt 0:0:15]} 47. Ra7 {[%emt 0:0:6]} Rc6 {[%emt 0:0:0]} 48. Ra8 {[%emt 0:0:23]} Kg7 {[%emt 0:0:1]} 49. Re8 {[%emt 0:0:13]} Rc3+ {[%emt 0:0:26]} 50. Kf2 {[%emt 0:0:1]} Rc4 {[%emt 0:0:1]} 51. Kf3 {[%emt 0:0:4]
} Re4 {[%emt 0:0:1]} 52. Ra8 {[%emt 0:0:31]} f6 {[%emt 0:0:0]} 53. Ra7+ {[%emt 0:0:10]} Kg6 {[%emt 0:0:4]} 54. Ra6 {[%emt 0:0:2]} Kh6 {[%emt 0:0:15]} 55. Rb6 {[%emt 0:0:2]} Kg6 {[%emt 0:0:31]} 56. Ra6 {[%emt 0:0:2]
} Kf7 {[%emt 0:0:3]} 57. Ra7+ {[%emt 0:0:1]} Kf8 {[%emt 0:0:0]} 58. Ra8+ {[%emt 0:0:21]} Kf7 {[%emt 0:0:16]} 59. Ra7+ {[%emt 0:0:2]} Kf8 {[%emt 0:0:2]} 60. Ra8+ {[%emt 0:0:2]} Ke7 {[%emt 0:0:7]} 61. Ra7+ {[%emt 0:0:8]
} Kf8 {[%emt 0:0:24]} 62. Ra8+ {[%emt 0:0:2]} Kg7 {[%emt 0:0:0]} 63. Ra7+ {[%emt 0:0:2]} Kg6 {[%emt 0:0:1]} 64. Ra6 {[%emt 0:0:2]} e5 {[%emt 0:0:5]} 65. fxe5 {[%emt 0:0:3]} Rxe5 {[%emt 0:0:1]} 66. Ra4 {[%emt 0:0:20]
} Rb5 {[%emt 0:0:7]} 67. Rc4 {[%emt 0:0:22]} Ra5 {[%emt 0:0:0] Ke4} 1/2-1/2

[Event "FIDE World Rapid-ch Open 2018"]
[White "Kryakvin, Dmitry"]
[Black "Pershin, Denis"]
[Site "St. Petersburg"]
[Round "11.72"]
[Annotator "ChessBase"]
[Result "1-0"]
[Date "2018.12.28"]
[WhiteElo "2588"]
[BlackElo "2400"]
[PlyCount "83"]
[TimeControl "900+10"]

1. d4 {[%emt 0:0:0]} d5 {[%emt 0:0:0]} 2. c4 {[%emt 0:0:0]} c6 {[%emt 0:0:0]} 3. Nf3 {[%emt 0:0:0]} Nf6 {[%emt 0:0:0]} 4. Nc3 {[%emt 0:0:0]} e6 {[%emt 0:0:0]} 5. cxd5 {[%emt 0:0:0]} exd5 {[%emt 0:0:0]} 6. Qc2 {[%emt 0:0:0]
} g6 {[%emt 0:0:5]} 7. Bg5 {[%emt 0:0:14]} Bg7 {[%emt 0:0:13]
} 8. e3 {[%emt 0:0:21]} Bf5 {[%emt 0:0:6]} 9. Bd3 {[%emt 0:0:2]} Bxd3 {[%emt 0:0:2]
} 10. Qxd3 {[%emt 0:0:1]} 0-0 {[%emt 0:0:14]} 11. 0-0 {[%emt 0:0:5]
} Nbd7 {[%emt 0:0:29]} 12. b4 {[%emt 0:0:1]} Re8 {[%emt 0:0:0]} 13. Rab1 {[%emt 0:0:9]} h6 {[%emt 0:3:1]} 14. Bh4 {[%emt 0:0:1]} g5 {[%emt 0:0:7]} 15. Bg3 {[%emt 0:0:2]} Ne4 {[%emt 0:0:2]} 16. b5 {[%emt 0:0:0]} Qa5 {[%emt 0:0:53]} 17. bxc6 {[%emt 0:0:46]} bxc6 {[%emt 0:0:17]} 18. Rfc1 {[%emt 0:0:27]} Rac8 {[%emt 0:5:28]} 19. Qc2 {[%emt 0:1:0]} Nxc3 {[%emt 0:1:25]
} 20. Qxc3 {[%emt 0:0:2]} Qxc3 {[%emt 0:0:1]} 21. Rxc3 {[%emt 0:0:1]
} c5 {[%emt 0:0:1]} 22. Ra3 {[%emt 0:1:5]} g4 {[%emt 0:0:48]
} 23. Rxa7 {[%emt 0:0:34]} gxf3 {[%emt 0:0:3]} 24. Rxd7 {[%emt 0:0:2]} cxd4 {[%emt 0:0:1]} 25. exd4 {[%emt 0:0:17]} Rc2 {[%emt 0:0:44]} 26. gxf3 {[%emt 0:1:7]
} Rxa2 {[%emt 0:0:12]} 27. Rxd5 {[%emt 0:0:25]} Rd2 {[%emt 0:0:0]} 28. Rb4 {[%emt 0:0:31]} Re1+ {[%emt 0:0:27]} 29. Kg2 {[%emt 0:0:1]} Red1 {[%emt 0:2:42]} 30. Rb8+ {[%emt 0:4:16]} Kh7 {[%emt 0:0:1]} 31. Rd7 {[%emt 0:0:1]
} Rxd4 {[%emt 0:1:5]} 32. Rxf7 {[%emt 0:0:2]} Rd7 {[%emt 0:0:0]} 33. Rxd7 {[%emt 0:0:1]} Rxd7 {[%emt 0:0:1]} 34. Rb5 {[%emt 0:0:1]
} Kg6 {[%emt 0:0:6]} 35. h4 {[%emt 0:0:5]} Rf7 {[%emt 0:0:25]} 36. h5+ {[%emt 0:0:16]
} Kf6 {[%emt 0:0:2]} 37. Kh3 {[%emt 0:0:21]} Ke6 {[%emt 0:0:0]} 38. Kg4 {[%emt 0:0:5]} Bd4 {[%emt 0:0:2]} 39. f4 {[%emt 0:0:38]} Rg7+ {[%emt 0:0:1]} 40. Kf3 {[%emt 0:0:1]} Ba7 {[%emt 0:0:53]} 41. f5+ {[%emt 0:0:20]
} Ke7 {[%emt 0:0:5]} 42. f6+ {[%emt 0:0:8]} 1-0